Workbook

Sheet Worksheet
B4: End User Worksheet - Disaster Debris
C6: Households | D6: =10000/3 -> 3333.333333 | E6: If household data is not available, please divide the population estimate for the jurisdiction by 3 to estimate the number of households.
C7: Storm Category | D7: 3 | E7: Please choose Hurricane Category 1-5
C8: Vegetative Cover | D8: Heavy | E8: Please refer to the End User Survey for this value.
C9: Commercial/Industrial Density | D9: Medium | E9: Please refer to the End User Survey for this value.
C10: Storm Precipitation Characteristic | D10: Medium | E10: For a "worst case scenario" estimate, please choose "heavy"
C14: Demolition of non-RACM Structures | D14: 100 | E14: Please enter values in multiples of 100
C15: Demolition of RACM Structures | D15: 100 | E15: Please enter values in multiples of 100
C16: White Goods | D16: 100 | E16: Please enter values in multiples of 100
C17: Used Electronics | D17: 50 | E17: Please enter values in multiples of 50
C18: HHW | D18: 100 | E18: Please enter values in multiples of 100
C19: Vehicle and Vessel Removals | D19: 50 | E19: Please enter values in multiples of 50
C20: Animal Carcasses | D20: 100 | E20: Please enter values in multiples of 100
C22: Enter very conservative estimates for the items listed above. If a listed item is not relevant for the end user enter 0. For example, if the end user does not have a high concentration of water vessels then enter 0. All estimates entered above should be based on the applicability to the end user. If the end user determines that the multiples referenced above are not applicable to the end user then enter a conservative estimate.

Sheet pricing
B3: SCHEDULE 1 - UNIT RATE PRICE SCHEDULE
D5: To be Completed By Vendor ▼ | E5: To be Completed By End User ▼
B7: 2 | C7: ROW Vegetative Debris Removal (Collect & Haul) | D7: $ Per Cubic Yard | E7: Estimated CY | F7: Total
B8: Work consists of all labor, equipment, fuel, and associated costs necessary for the collection and transportation of eligible vegetative debris on the ROW to an approved DMS or other designated disposal facility.
E10: =Estimate!I25 -> 142500 | F10: =D10*E10 -> 0
B11: 3 | C11: ROW C&D Debris Removal (Collect & Haul) | D11: $ Per Cubic Yard | E11: Estimated CY | F11: Total
B12: Work consists of all labor, equipment, fuel, and associated costs necessary for the collection and transportation of eligible C&D debris on the ROW to an approved disposal facility.
E14: =Estimate!I26 -> 47500 | F14: =D14*E14 -> 0
B15: 4 | C15: Demolition, Removal, Transport, and Demolition of Eligible Non-RACM Structures | D15: $ Per Cubic Yard | E15: Estimated CY | F15: Total
B16: Work consists of all labor, equipment, fuel, and associated costs necessary to demolish, remove, transport, and dipose of eligible non-RACM structures on private property.
E18: =Worksheet!D14 -> 100 | F18: =D18*E18 -> 0
B19: 5 | C19: Demolition, Removal, Transport, and Demolition of Eligible RACM Structures | D19: $ Per Cubic Yard | E19: Estimated CY | F19: Total
B20: Work consists of all labor, equipment, fuel, and associated costs necessary to demolish, remove, transport, and dipose of eligible RACM structures on private property.
E22: =Worksheet!D15 -> 100 | F22: =D22*E22 -> 0
B23: 6 | C23: DMS Management and Operations | D23: $ Per Cubic Yard | E23: Estimated CY | F23: Total
B24: Work consists of all labor, equipment, fuel, and associated costs necessary for the management and operation of DMS for acceptance, management, segregation, and staging of disaster related debris.
E26: =Estimate!I27 -> 190000 | F26: =D26*E26 -> 0
B27: 7 | C27: Reduction of Debris Through Grinding | D27: $ Per Cubic Yard | E27: Estimated CY | F27: Total
B28: Work consists of all labor, equipment, fuel, and miscellaneous costs necessary to reduce disaster generated debris through grinding.
E30: =0.75*E26 -> 142500 | F30: =D30*E30 -> 0
B31: 8 | C31: Reduction of Debris Through Air Curtain Incineration | D31: $ Per Cubic Yard | E31: Estimated CY | F31: Total
B32: Work consists of all labor, equipment, fuel, and miscellaneous costs necessary to reduce disaster generated debris through air curtain incineration.
E34: =0.25*E26 -> 47500 | F34: =D34*E34 -> 0
B35: 9 | C35: Haul-out of Reduced Debris to Final Disposal Site | D35: $ Per Cubic Yard | E35: Estimated CY | F35: Total
B36: Work consists of all labor, equipment, fuel, and associated costs necessary for loading and transporting reduced debris at an approved DMS to a final disposal facility.
E38: =(0.25*E30)+(0.03*E34) -> 37050 | F38: =D38*E38 -> 0
B40: Notes: [Enter notes as applicable or Erase]
B42: SCHEDULE 1 - UNIT RATE PRICE SCHEDULE (Continued)
D44: To be Completed By Vendor ▼ | E44: To be Completed By End User ▼
B46: 10 | C46: Removal of Eligible Hazardous Leaning Trees and Hanging Limbs | D46: $ Per Tree | E46: Estimated Trees | F46: Total
B47: Work consists of all labor, equipment, fuel, and associated costs necessary for the removal of eligible hazardous leaning or hanging limbs and placement of them on the ROW for haul-off.
C49: 6 inch to 12 inch diameter | E49: =INT('Leaner-Hanger'!D43*Worksheet!D6) -> 9 | F49: =D49*E49 -> 0
C50: 13 inch to 24 inch diameter | E50: =INT('Leaner-Hanger'!D44*Worksheet!$D$6) -> 17 | F50: 0
C51: 25 inch to 36 inch diameter | E51: =INT('Leaner-Hanger'!D45*Worksheet!$D$6) -> 8 | F51: 0
C52: 37 inch to 48 inch diameter | E52: =INT('Leaner-Hanger'!D46*Worksheet!$D$6) -> 1 | F52: 0
C53: 49 inch and larger diameter | E53: =INT('Leaner-Hanger'!D47*Worksheet!$D$6) -> 0 | F53: 0
C54: Hanger Removal (2" or greater at the break and price per Tree) | E54: =INT('Leaner-Hanger'!D48*Worksheet!$D$6) -> 1414 | F54: 0
B55: 11 | C55: Removal of Eligible Hazardous Stumps | D55: $ Per Stump | E55: Estimated Stumps | F55: Total
B56: Work consists of all labor, equipment, fuel, and associated costs necessary for the removal of eligible hazardous stumps and transportation to an approved DMS or other designated disposal facility.
C58: 24.1 inch to 36 inch diameter | E58: =INT(0.5*E51) -> 4 | F58: =D58*E58 -> 0
C59: 37 inch to 48 inch diameter | E59: =INT(0.5*E52) -> 0 | F59: =D59*E59 -> 0
C60: 49 inch and larger diameter | E60: =INT(0.5*E53) -> 0 | F60: =D60*E60 -> 0
B61: 12 | C61: Removal of Eligible White Goods | D61: $ Per Unit | E61: Estimated Units | F61: Total
B62: Work consists of all labor, equipment, fuel, and associated costs necessary for the collection of eligible white goods, removal of refrigerants, transportation to an approved DMS, decontamination, and transportation to an approved final disposal facility.
E64: =Worksheet!D16 -> 100 | F64: =D64*E64 -> 0
B65: 13 | C65: Removal of Eligible Used Electronics | D65: $ Per Unit | E65: Estimated Units | F65: Total
B66: Work consists of all labor, equipment, fuel, and associated costs necessary for the collection of eligible used electronics and transportation to an approved final disposal facility.
E68: =Worksheet!D17 -> 50 | F68: =D68*E68 -> 0
B69: 14 | C69: Removal of HHW | D69: $ Per Pound | E69: Estimated Units | F69: Total
B70: Work consists of all labor, equipment, fuel, and associated costs necessary for the removal of eligible HHW and transportation to an approved final disposal facility.
E72: =Worksheet!D18 -> 100 | F72: =D72*E72 -> 0
B73: 15 | C73: Abandoned Eligible Vessel and Vehicle Removal | D73: $ Per Unit | E73: Estimated Units | F73: Total
B74: Work consists of all labor, equipment, fuel, and associated costs necessary for the removal of eligible abandoned vessels and vehicles and transportation to an approved staging area.
E76: =Worksheet!D19 -> 50 | F76: =D76*E76 -> 0
B77: 16 | C77: Eligible Animal Carcass Removal and Disposal | D77: $ Per Unit | E77: Estimated Units | F77: Total
B78: Work consists of all labor, equipment, fuel, and associated costs necessary for the removal of eligible animal carcasses and transportation to an approved final disposal facility.
E80: =Worksheet!D20 -> 100 | F80: =D80*E80 -> 0
B82: Total Estimated Contract Price | F82: =SUM(F7:F80) -> 0
B84: (Total Price in words: | E84: =SpellNumber(F82) ->  | F84: )
B86: Notes: [Enter notes as applicable or Erase]
C88: Please note if you are using pounds or unit pricing for #16 -Animal Carcass Pricing

Sheet Schedule-PDF (hidden)
B3: SCHEDULE 1 - UNIT RATE PRICE SCHEDULE
D5: To be Completed By Vendor ▼ | E5: To be Completed By End User ▼
B7: 1. | C7: ROW Vegetative Debris Removal (Collect & Haul) | D7: $ Per Cubic Yard | E7: Estimated CY | F7: Total
B8: Work consists of pick and transport of vegetative debris on the ROW to an approved TDSRS or other designated disposal facility.
D10: $ | F10: $
B11: 2. | C11: ROW C&D Debris Removal (Collect & Haul) | D11: $ Per Cubic Yard | E11: Estimated CY | F11: Total
B12: Work consists of pick and transport of C&D debris on the ROW to an approved TDSRS or other designated disposal facility.
D14: $ | F14: $
B15: 3. | C15: Demolition, Removal and Transport of Structures | D15: $ Per Cubic Yard | E15: Estimated CY | F15: Total
B16: Work consists of all labor, equipment, fuel, and miscellaneous costs necessary to demolish structures on private property.
D18: $ | F18: $
B19: 4. | C19: TDSR Management and Operations | D19: $ Per Cubic Yard | E19: Estimated CY | F19: Total
B20: Work consists of the management and operation of TDSRS' for acceptance, management, segregation, and staging of disaster related debris.
D22: $ | F22: $
B23: 5. | C23: Reduction of Storm Generated Debris by Grinding | D23: $ Per Cubic Yard | E23: Estimated CY | F23: Total
B24: Work consists of all labor, equipment, fuel, and miscellaneous costs necessary to reduce disaster generated debris by grinding.
D26: $ | F26: $
B27: 6. | C27: Haul-out of Reduced Debris to Final Disposal Site | D27: $ Per Cubic Yard | E27: Estimated CY | F27: Total
B28: Work consists of pick up and transport of reduced debris at an approved TDSRS to a final disposal facility.
D30: $ | F30: $
B33: SCHEDULE 1 - UNIT RATE PRICE SCHEDULE (CONTINUED)
D35: To be Completed By Vendor ▼ | E35: To be Completed By End User ▼
B37: 7. | C37: Removal of Hazardous Leaning Trees and Hanging Limbs | D37: $ Per Tree | E37: Estimated Trees | F37: Total
B38: Work consists of removing hazardous leaning or hanging limbs and placing them on the ROW for haul-off.
C40: 12 inch to 23.99 inch diameter | D40: $ | F40: $
C41: 24 inch to 35.99 inch diameter | D41: $ | F41: $
C42: 36 inch to 47.99 inch diameter | D42: $ | F42: $
C43: 48 inch and larger diameter | D43: $ | F43: $
C44: Hanger Removal (per Tree) | D44: $ | F44: $
B45: 8. | C45: Removal of Hazardous Stumps | D45: $ Per Stump | E45: Estimated Stumps | F45: Total
B46: Work consists of removing hazardous stumps and placing them on the ROW for haul-off.
C48: 24 inch to 35.99 inch diameter | D48: $ | F48: $
C49: 36 inch to 47.99 inch diameter | D49: $ | F49: $
C50: 48 inch and larger diameter | D50: $ | F50: $
B51: 9. | C51: Abandoned Vehicle Removal | D51: $ Per Unit | E51: Estimated Units | F51: Total
B52: Work consists of the removal of abandoned vehicles in areas identified and approved by the City and subsequently transported to a City approved staging area.
D54: $ | F54: $
B55: 10. | C55: Animal Carcass Removal and Disposal | D55: $ Per Unit | E55: Estimated Units | F55: Total
B56: Work consists of the removal of animal carcasses in areas identified and approved by the City and subsequently transported to a City approved staging area.
D58: $ | F58: $
B59: 11. | C59: ROW White Goods Debris Removal (Collect & Haul) | D59: $ Per Cubic Yard | E59: Estimated CY | F59: Total
B60: Work consists of all labor, equipment, fuel, and miscellaneous costs necessary for removal, transportation, and disposal of White Goods.
D62: $ | F62: $
B64: Total Estimated Contract Price | F64: $
B66: (Total Price in words: | F66: )

Sheet Estimate (hidden)
A1: Debris Volume Estimate Model
C8: Cubic Yardage Estimate
C10: Estimated Households | I10: =Worksheet!D6 -> 3333.333333
C11: Storm Category | I11: =Worksheet!D7 -> 3
C12: Vegetation Characteristic | I12: =Worksheet!D8 -> Heavy
C13: Commercial/Industrial Density | I13: =Worksheet!D9 -> Medium
C14: Storm Precipitation Characteristic | I14: =Worksheet!D10 -> Medium
C16: Q = H (C)(V)(B)(S) where:
C18: Q = | D18: quantity of debris in cubic yards | I18: =ROUND(I19*I20*I21*I22*I23,-4) -> 190000
C19: H = | D19: number of households | H19: = | I19: =I10 -> 3333.333333
C20: C = | D20: storm category factor in cubic yards | H20: = | I20: =VLOOKUP(I11,'Work Area'!A3:B7,2,FALSE) -> 26
C21: V = | D21: vegetation characteristic multiplier | H21: = | I21: =VLOOKUP(I12,'Work Area'!A12:B14,2,FALSE) -> 1.5
C22: B = | D22: commercial/business/industrial multiplier | H22: = | I22: =VLOOKUP(I13,'Work Area'!A19:B21,2,FALSE) -> 1.2
C23: S = | D23: storm precipitation characteristic multiplier | H23: = | I23: =VLOOKUP(I14,'Work Area'!A26:B28,2,FALSE) -> 1.2
C25: Clean Woody Debris | I25: =$I$18*L25 -> 142500 | L25: 0.75
C26: Mixed C&D Debris | I26: =$I$18*L26 -> 47500 | L26: 0.25
C27: Total Debris | I27: =SUM(I25:I26) -> 190000
E30: Debris Storage Site Requirements
D32: AC | E32: One Acre | I32: 4840 | J32: Square Yards (SY)
D33: 20 | E33: Foot Stack Height | I33: =D33/3 -> 6.666666667 | J33: Yards
E34: Volume Per Acre | I34: =I32*I33 -> 32266.66667 | J34: CY/AC
E36: Total Debris Estimate | I36: =I27 -> 190000
E37: Debris Storage Requirement | I37: =I36/I34 -> 5.888429752 | J37: AC
E38: Road and Buffer Factor | I38: 1.66
E39: Estimated Storage Requirements | I39: =I37*I38 -> 9.774793388 | J39: AC
A41: Notes:
A42: [1] Source: USACE Hurricane Debris Estimating Model.

Sheet Work Area (hidden)
A1: Hurricane | B1: Value of "C"
A2: Category | B2: Factor
A3: 1 | B3: 2
A4: 2 | B4: 8
A5: 3 | B5: 26
A6: 4 | B6: 50
A7: 5 | B7: 80
A10: Vegetative | B10: Value of "V"
A11: Cover | B11: Multiplier
A12: Light | B12: 1.1
A13: Medium | B13: 1.3
A14: Heavy | B14: 1.5
A17: Commercial | B17: Value of "B"
A18: Density | B18: Multiplier
A19: Light | B19: 1
A20: Medium | B20: 1.2
A21: Heavy | B21: 1.3
A24: Precipitation | B24: Value of "S"
A25: Characteristic | B25: Multiplier
A26: Light | B26: 1
A27: Medium | B27: 1.2
A28: Heavy | B28: 1.3

Sheet Leaner-Hanger (hidden)
A2: City of Norman, OK | B2: Quantity | C2: Households | D2: Items per Household
C3: 38834
A4: Removal 6" to 12" | B4: 18 | D4: =B4/$C$3 -> 0.000463511356
A5: Removal 13" to 24" | B5: 11 | D5: =B5/$C$3 -> 0.0002832569398
A6: Removal 25" to 36" | B6: 1 | D6: =B6/$C$3 -> 2.575063089e-05
A7: Removal 37" to 48" | D7: =B7/$C$12 -> 0
A8: Removal 48" or More | D8: =B8/$C$12 -> 0
A9: Limb Removal per tree | B9: 23250 | D9: =B9/$C$3 -> 0.5987021682
A11: City of Springfield, MO | B11: Quantity | C11: Households | D11: Items per Household
C12: 64691
A13: Removal 4" to 12" | B13: 302 | D13: =B13/$C$12 -> 0.004668346447
A14: Removal 13" to 24" | B14: 970 | D14: 0.01499435779
A15: Removal 25" to 36" | B15: 514 | D15: 0.00794546382
A16: Removal 37" to 48" | B16: 67 | D16: 0.001035692755
A17: Removal 48" or More | B17: 9 | D17: 0.0001391229074
A18: Limb Removal per tree | B18: =18020+1360+235 -> 19615 | D18: 0.3032106475
A20: Greene County, MO | B20: Quantity | C20: Households | D20: Items per Household
C21: 97859
A22: Removal 4" to 12" | B22: 358 | D22: =B22/$C$21 -> 0.003658324733
A23: Removal 13" to 24" | B23: 42 | D23: 0.0004291889351
A24: Removal 25" to 36" | B24: 7 | D24: 7.153148918e-05
A25: Removal 37" to 48" | B25: 1 | D25: 1.021878417e-05
A26: Removal 48" or More | B26: 2 | D26: 2.043756834e-05
A27: Limb Removal per tree | B27: =50306+2985+573 -> 53864 | D27: 0.5504245905
A29: Town of Tonawanda, NY | B29: Quantity | C29: Households | D29: Items per Household
C30: 26207
A31: Removal 24" - 35.99" | B31: 62 | D31: =B31/$C$30 -> 0.002365780135
A32: Removal 36" - 47.99" | B32: 2 | D32: =B32/$C$30 -> 7.631548823e-05
A33: Removal 48" and Larger | B33: 1 | D33: =B33/$C$30 -> 3.815774411e-05
A34: Limb Removal per tree | B34: 12070 | D34: =B34/$C$30 -> 0.4605639715
A36: Harrison County, MS | B36: Quantity | C36: Households | D36: Items per Household
C37: 71538
A38: Tree Removal cut flush | B38: 18862 | D38: =B38/$C$37 -> 0.2636640666
A39: Removal with stump, 6" or greater | B39: 3768 | D39: =B39/$C$37 -> 0.05267130756
A40: Limb Removal per tree | B40: 14922 | D40: =B40/$C$37 -> 0.2085884425
A42: Average Line Items per Household | D42: Items per Household
A43: Removal 4" to 12" | D43: =AVERAGE(D4,D13,D22) -> 0.002930060845
A44: Removal 13" to 24" | D44: =AVERAGE(D5,D14,D23) -> 0.005235601223
A45: Removal 25" to 36" | D45: =AVERAGE(D6,D15,D24,D31) -> 0.002602131519
A46: Removal 37" to 48" | D46: =AVERAGE(D25,D16,D32) -> 0.0003740756757
A47: Removal 49" or More | D47: =AVERAGE(D17,D26,D33) -> 6.590607327e-05
A48: Limb Removal | D48: =AVERAGE(D9,D18,D27,D34,D40) -> 0.424297964
